bitfinex-derivatives/quotes_SOLF0:USTF0_20220108
["timestamp","ask_amount","ask_price","bid_price","bid_amount"]
[1641650722333,27.66479,145.6,145.53,56.9684]
[1641650722533,34.18179,145.6,145.53,56.9684]
[1641650722832,34.18179,145.6,145.53,60.9684]
[1641650723034,34.18179,145.6,145.53,1.717]
[1641650723235,24.0,145.54,145.5,57.75737217]
[1641650723432,24.0,145.54,145.5,46.97737217]
[1641650723433,6.936,145.54,145.5,46.97737217]
[1641650723633,5.4977732,145.52,145.5,46.97737217]
[1641650723834,5.4977732,145.52,145.46,95.69125607]
[1641650724035,5.49886845,145.49,145.46,95.69125607]
[1641650724234,24.0,145.47,145.4,29.38279]
[1641650724434,5.50223924,145.4,145.36,1.68582978]
[1641650724733,24.0,145.37,145.3,11.94391734]
[1641650724933,4.0,145.31,145.29,144.14382927]
[1641650725133,24.0,145.3,145.29,120.74382927]
[1641650725335,30.8880011,145.3,145.29,100.83564864]
[1641650725534,30.8880011,145.3,145.29,78.11564864]
[1641650725736,38.8880011,145.3,145.16,1.72]
[1641650725937,4.0,145.29,145.14,1.721]
[1641650726134,27.66479,145.21,145.13,33.38579]
[1641650726434,35.25179,145.21,145.13,33.38579]
[1641650727036,35.25179,145.21,145.14,4.0]
[1641650727235,35.25179,145.21,145.13,25.56389353]
[1641650727536,35.25179,145.21,145.15,1.722]
[1641650727736,35.25179,145.21,145.14,1.722]
[1641650727936,11.80646083,145.2,145.14,1.722]
[1641650728136,27.66479,145.18,145.14,1.722]
[1641650728341,34.85779,145.18,145.1,6.88823833]
[1641650728537,34.85779,145.18,145.14,1.722]
[1641650728937,4.77911084,145.15,145.14,1.722]
[1641650729138,12.69911084,145.15,145.11,1.722]
[1641650729537,7.92,145.15,145.11,1.722]
[1641650730337,7.92,145.15,145.09,1.722]
[1641650731137,4.74461005,145.13,145.09,1.722]
[1641650731938,8.233,145.16,145.09,1.722]
[1641650732138,27.66479,145.14,145.09,1.722]
[1641650733039,16.36348066,145.13,145.09,1.722]
[1641650733842,72.86216785,145.13,145.05,74.6971566]
[1641650734042,72.86216785,145.13,145.05,47.14230522]
[1641650734242,27.66479,145.11,145.05,47.14230522]
[1641650734443,27.66479,145.11,145.05,1.723]
[1641650735044,27.66479,145.11,145.06,6.88895012]
[1641650735244,27.66479,145.11,145.07,1.723]
[1641650735645,4.70579188,145.09,145.07,1.723]
[1641650735844,27.66479,145.11,145.07,1.723]
[1641650736045,27.66479,145.11,145.07,10.07]
[1641650736445,9e-05,145.11,145.09,6.88728951]
[1641650736745,27.66479,145.14,145.1,1.722]
[1641650737044,0.00018,145.14,145.04,30.97756258]
[1641650737245,0.00018,145.14,145.1,1.722]
[1641650737446,22.10868719,145.2,145.06,20.0]
[1641650737645,37.58943119,145.22,145.06,20.0]
[1641650737845,37.58943119,145.22,145.09,150.89593223]
[1641650738047,37.58943119,145.22,145.1,1.722]
[1641650738246,37.58943119,145.22,145.17,27.66479]
[1641650738447,24.72392659,145.23,145.17,27.66479]
[1641650738650,27.66479,145.24,145.17,27.66479]
[1641650738846,27.66479,145.24,145.15,27.66479]
[1641650740148,55.32958,145.24,145.15,27.66479]
[1641650740850,43.59739734,145.24,145.15,27.66479]
[1641650741049,19.15544703,145.24,145.15,27.66479]
[1641650742151,19.15544703,145.24,145.15,55.32958]
[1641650742356,4.0,145.23,145.15,55.32958]
[1641650742558,23.15544703,145.24,145.1,1.721]
[1641650743156,4.0,145.23,145.1,1.721]
[1641650743357,4.0,145.2,145.1,1.721]
[1641650743656,7.238,145.2,145.08,114.7187]
[1641650743858,7.238,145.2,145.08,62.98]
[1641650744056,7.238,145.2,145.06,1.722]
[1641650744258,7.238,145.2,145.12,27.66479]
[1641650745858,27.66479,145.21,145.12,27.66479]
[1641650748258,4.0,145.2,145.12,27.66479]
[1641650748460,9.437,145.2,145.12,27.66479]
[1641650748659,5.437,145.2,145.12,27.66479]
[1641650750362,4.0,145.19,145.12,27.66479]
[1641650750766,5.437,145.2,145.12,27.66479]
[1641650750963,4.0,145.19,145.11,16.79937696]
[1641650751366,5.437,145.2,145.1,27.66479]
[1641650751968,4.0,145.17,145.1,27.66479]
[1641650752165,4.0,145.19,145.1,27.66479]
[1641650752464,27.66479,145.18,145.1,27.66479]
[1641650752664,34.62279,145.18,145.1,27.66479]
[1641650752864,34.62279,145.18,145.17,14.39702971]
[1641650753466,38.62279,145.18,145.17,14.39702971]
[1641650753765,38.62279,145.18,145.1,27.66479]
[1641650753965,14.1723753,145.18,145.15,94.16447865]
[1641650754166,4.0,145.17,145.15,94.16447865]
[1641650754364,27.66479,145.21,145.19,24.33956221]
[1641650754566,27.66479,145.21,145.19,18.82912561]
[1641650756065,27.66479,145.21,145.2,58.45226093]
[1641650757872,6.88657806,145.22,145.2,61.73836852]
[1641650758972,10.88657806,145.22,145.2,61.73836852]
[1641650759171,4.0,145.21,145.2,61.73836852]
[1641650759372,17.27957806,145.22,145.2,61.73836852]
[1641650759775,23.89060986,145.22,145.2,61.73836852]
[1641650760073,6.88847558,145.21,145.2,61.73836852]
[1641650760273,10.88847558,145.21,145.2,53.56457664]
[1641650760473,6.88847558,145.21,145.2,50.09657664]
[1641650760674,6.88847558,145.21,145.2,3.28610759]
[1641650760875,10.88847558,145.21,145.2,3.28610759]
[1641650761475,10.88847558,145.21,145.19,18.82912561]
[1641650761676,18.59547558,145.21,145.19,18.82912561]
[1641650763882,14.59547558,145.21,145.19,18.82912561]
[1641650765187,14.59547558,145.21,145.2,2.73711041]
[1641650767687,18.59547558,145.21,145.2,2.73711041]
[1641650767887,14.59547558,145.21,145.2,2.73711041]
[1641650769290,42.26026558,145.21,145.2,2.73711041]
[1641650769489,42.26026558,145.21,145.19,17.56623602]
[1641650771891,14.59547558,145.21,145.19,17.56623602]
[1641650772093,6.88847558,145.21,145.19,17.56623602]
[1641650773495,6.88847558,145.21,145.2,14.60765335]
[1641650774497,6.88847558,145.21,145.19,32.17388937]
[1641650775399,6.88847558,145.21,145.2,14.60765335]
[1641650777798,6.88847558,145.21,145.19,17.56623602]
[1641650778000,13.15547558,145.21,145.19,17.56623602]
[1641650778898,13.15547558,145.21,145.2,14.64602331]
[1641650779698,13.15547558,145.21,145.19,56.51997828]
[1641650780498,5.51001266,145.2,145.19,56.51997828]
[1641650781499,5.51001266,145.2,145.19,17.56623602]
[1641650782902,6.88847558,145.21,145.19,21.56623602]
[1641650783103,5.50737488,145.26,145.2,4.0]
[1641650783305,5.50737488,145.26,145.21,4.0]
[1641650783704,5.50737488,145.26,145.22,4.0]
[1641650783902,5.50737488,145.26,145.22,9.899]
[1641650784103,6.88491859,145.26,145.22,68.43409086]
[1641650784804,6.88397067,145.28,145.22,68.43409086]
[1641650785205,6.88278615,145.31,145.27,4.0]
[1641650785405,6.88278615,145.31,145.27,7.916]
[1641650785705,6.88278615,145.31,145.27,35.58079]
[1641650785905,6.88278615,145.31,145.27,39.58079]
[1641650786104,6.88207563,145.32,145.27,39.58079]
[1641650786505,6.88207563,145.32,145.29,38.94097568]
[1641650787607,6.88207563,145.32,145.3,38.94097568]
[1641650788410,6.88207563,145.32,145.3,33.07578889]
[1641650789008,6.88207563,145.32,145.27,15.5261725]
[1641650789210,6.88207563,145.32,145.26,15.5261725]
[1641650790110,6.88207563,145.32,145.25,86.19988086]
[1641650790810,6.88207563,145.32,145.31,14.56047012]
[1641650791416,6.88207563,145.32,145.25,47.1909625]
[1641650792717,6.88207563,145.32,145.26,4.0]
[1641650793118,6.88207563,145.32,145.25,43.1909625]
[1641650793119,6.88207563,145.32,145.27,4.0]
[1641650793519,6.88207563,145.32,145.31,14.54970389]
[1641650794319,6.88207563,145.32,145.28,27.66479]
[1641650795124,37.17582639,145.35,145.31,4.0]
[1641650795321,16.39169143,145.35,145.32,4.0]
[1641650795523,6.88065504,145.35,145.32,4.0]
[1641650795722,6.88065504,145.35,145.33,27.66479]
[1641650796024,6.88065504,145.35,145.33,42.20604635]
[1641650797124,6.88065504,145.35,145.34,14.54125635]
[1641650797724,6.88065504,145.35,145.33,42.20604635]
[1641650797928,6.87947166,145.38,145.33,46.20604635]
[1641650798125,6.87947166,145.38,145.33,55.03104635]
[1641650799227,6.87947166,145.38,145.37,4.84294748]
[1641650799429,34.54331524,145.4,145.37,4.84294748]
[1641650800030,12.38287478,145.38,145.37,4.84294748]
[1641650800230,21.15287478,145.38,145.37,4.84294748]
[1641650800732,25.15287478,145.38,145.37,4.84294748]
[1641650800932,0.66035745,145.37,145.36,4.84013238]
[1641650801131,25.15287478,145.38,145.36,4.84013238]
[1641650801731,27.66479,145.37,145.32,14.54125635]
[1641650801931,27.66479,145.37,145.31,14.54125635]
[1641650802132,4.0,145.35,145.31,14.54125635]
[1641650802331,8.229,145.35,145.31,14.54125635]
[1641650802933,8.229,145.35,145.3,14.54125635]
[1641650803736,8.229,145.35,145.32,14.54125635]
[1641650804435,27.66479,145.37,145.32,14.54125635]
[1641650804635,27.66479,145.37,145.31,14.54125635]
[1641650805837,27.66479,145.37,145.32,14.54125635]
[1641650806437,5.50362904,145.36,145.32,14.54125635]
[1641650806637,5.50362904,145.36,145.31,14.54125635]
[1641650809042,5.50362904,145.36,145.32,14.54125635]
[1641650811643,5.50362904,145.36,145.32,18.54125635]
[1641650811843,5.50362904,145.36,145.33,4.0]
[1641650812045,5.50362904,145.36,145.32,23.37925635]
[1641650812245,5.50362904,145.36,145.35,4.0]
[1641650812543,6.87994496,145.38,145.35,7.697]
[1641650813445,5.50131368,145.42,145.35,7.697]
[1641650813644,6.87805214,145.41,145.35,7.697]
[1641650813844,6.87805214,145.41,145.37,27.66479]
[1641650815247,6.87805214,145.41,145.4,14.59903946]
[1641650817251,5.50241799,145.4,145.38,2.59657918]
[1641650818051,5.50241799,145.4,145.34,2.59657918]
[1641650818752,5.50241799,145.4,145.35,2.59657918]
[1641650819754,5.50241799,145.4,145.36,2.59657918]
[1641650819952,33.16720799,145.4,145.36,2.59657918]
[1641650820553,33.16720799,145.4,145.37,2.59657918]
[1641650821353,5.50241799,145.4,145.38,2.59657918]
[1641650822155,5.50241799,145.4,145.39,2.59657918]
[1641650824763,2.9066123,145.38,145.33,103.57827946]
[1641650824963,2.9066123,145.38,145.33,38.77857946]
[1641650825162,10.87805214,145.41,145.33,38.77857946]
[1641650825663,6.87805214,145.41,145.33,38.77857946]
[1641650825864,10.87805214,145.41,145.33,38.77857946]
[1641650826065,27.66479,145.4,145.33,44.16157946]
[1641650826362,6.87805214,145.41,145.33,48.16157946]
[1641650826964,6.87805214,145.41,145.34,4.0]
[1641650827163,6.87805214,145.41,145.35,4.0]
[1641650828065,6.87805214,145.41,145.35,31.66479]
[1641650828365,6.87805214,145.41,145.35,27.66479]
[1641650829468,6.87805214,145.41,145.34,38.77857946]
[1641650830168,6.87805214,145.41,145.35,27.66479]
[1641650831068,10.87805214,145.41,145.35,27.66479]
[1641650831270,10.87805214,145.41,145.34,38.77857946]
[1641650831471,5.50240526,145.4,145.34,38.77857946]
[1641650832270,37.16719526,145.4,145.34,38.77857946]
[1641650833371,10.88136526,145.35,145.34,38.77857946]
[1641650833571,17.02336526,145.35,145.34,33.27398833]
[1641650833870,17.02336526,145.35,145.29,58.53509086]
[1641650834071,4.0,145.32,145.26,121.58319086]
[1641650834272,6.88325991,145.3,145.26,58.53509086]
[1641650835273,6.88325991,145.3,145.22,72.1298]
[1641650835474,6.88325991,145.3,145.22,68.1298]
[1641650835874,6.88325991,145.3,145.23,4.0]
[1641650836074,6.88278615,145.31,145.23,4.0]
[1641650836275,6.88278615,145.31,145.27,27.66479]
[1641650836476,6.88278615,145.31,145.27,34.04879]
[1641650837976,6.88278615,145.31,145.27,6.384]
[1641650838377,6.88278615,145.31,145.24,15.34284096]
[1641650838577,6.88278615,145.31,145.26,4.0]
[1641650838777,6.88160204,145.33,145.26,6.353]
[1641650839179,6.88160204,145.33,145.28,4.0]
[1641650839788,6.88041833,145.36,145.26,10.353]
[1641650839980,4.0,145.35,145.26,6.353]
[1641650840179,9.50410953,145.35,145.24,1.72]
[1641650840382,6.88183883,145.33,145.26,27.66479]
[1641650844282,6.88183883,145.33,145.26,55.32958]
[1641650845084,33.16889953,145.35,145.26,55.32958]
[1641650845282,6.88112851,145.34,145.26,61.26558]
[1641650845882,6.88112851,145.34,145.26,5.936]
[1641650846282,6.8797083,145.37,145.3,4.0]
[1641650846485,6.8797083,145.37,145.31,31.66479]
[1641650847088,41.14587589,145.4,145.33,4.0]
[1641650847287,6.87852524,145.4,145.33,6.537]
[1641650848389,6.87852524,145.4,145.35,27.66479]
[1641650848591,6.87852524,145.4,145.35,42.24333495]
[1641650852394,6.87852524,145.4,145.35,27.66479]
[1641650854100,6.87852524,145.4,145.36,14.57854495]
[1641650854400,6.87852524,145.4,145.36,23.03254495]
[1641650855002,6.87852524,145.4,145.36,8.454]
[1641650855202,6.87852524,145.4,145.37,27.66479]
[1641650857509,6.87852524,145.4,145.36,8.454]
[1641650858510,6.87852524,145.4,145.34,42.24333495]
[1641650858707,12.38071329,145.4,145.34,42.24333495]
[1641650859208,12.38071329,145.4,145.34,27.66479]
[1641650859408,5.50293047,145.38,145.34,27.66479]
[1641650861512,5.50293047,145.38,145.36,4.85763904]
[1641650862311,5.50293047,145.38,145.34,26.65931598]
[1641650862912,34.54331524,145.4,145.34,26.65931598]
[1641650863111,40.04541482,145.4,145.34,26.65931598]
[1641650865712,40.04541482,145.4,145.35,2.07072806]
[1641650865913,34.54331524,145.4,145.35,2.07072806]
[1641650866317,6.87852524,145.4,145.35,2.07072806]
[1641650867217,6.87852524,145.4,145.35,16.64927301]
[1641650868321,6.87852524,145.4,145.37,27.66479]
[1641650868520,6.87852524,145.4,145.37,35.33379]
[1641650869222,6.87852524,145.4,145.38,2.07072806]
[1641650873026,6.87734259,145.42,145.38,2.07072806]
[1641650874226,6.87734259,145.42,145.38,16.64927301]
[1641650877735,6.87734259,145.42,145.38,2.07072806]
[1641650877934,6.87734259,145.42,145.38,10.52272806]
[1641650878533,6.87734259,145.42,145.39,2.07072806]
[1641650883540,6.87734259,145.42,145.37,14.57854495]
[1641650884641,5.50199562,145.41,145.37,14.57854495]
[1641650888946,5.50199562,145.41,145.37,42.24333495]
[1641650889446,6.87734259,145.42,145.37,42.24333495]
[1641650889647,6.87734259,145.42,145.38,2.07677586]
[1641650890349,6.87734259,145.42,145.38,16.65532081]
[1641650892048,6.87734259,145.42,145.38,10.79311397]
[1641650892851,6.87734259,145.42,145.37,36.02979]
[1641650897554,5.50181853,145.41,145.34,65.51726018]
[1641650898153,16.38154841,145.39,145.34,38.8579442]
[1641650898354,6.88065504,145.35,145.34,38.8579442]
[1641650898555,15.06965504,145.35,145.32,52.25484968]
[1641650899558,15.06965504,145.35,145.29,107.0464442]
[1641650899758,15.06965504,145.35,145.29,38.8579442]
[1641650900360,5.50463453,145.34,145.29,38.8579442]
[1641650900562,5.50463453,145.34,145.28,79.90392282]
[1641650902259,5.50463453,145.34,145.28,27.66479]
[1641650903866,5.50463453,145.34,145.27,103.3120442]
[1641650904062,5.50463453,145.34,145.27,64.4541]
[1641650907572,11.00927718,145.34,145.27,64.4541]
[1641650908675,5.50464265,145.34,145.27,64.4541]
[1641650915079,6.88065504,145.35,145.27,92.11889]
[1641650916283,6.88065504,145.35,145.27,96.11889]
[1641650916481,6.88065504,145.35,145.28,4.0]
[1641650916681,6.88065504,145.35,145.28,8.593]
[1641650917886,12.3848892,145.35,145.28,8.593]
[1641650918283,12.3848892,145.35,145.28,52.63009878]
[1641650918682,4.0,145.34,145.28,52.63009878]
[1641650918886,5.50501112,145.33,145.28,52.63009878]
[1641650919084,27.66479,145.32,145.28,52.63009878]
[1641650919785,27.66479,145.32,145.28,38.8579442]
[1641650919986,27.66479,145.32,145.27,64.4541]
[1641650919987,5.50501112,145.33,145.27,103.3120442]
[1641650920886,5.50501112,145.33,145.27,64.4541]
[1641650921685,5.50501112,145.33,145.25,66.5227342]
[1641650921886,6.88302302,145.3,145.25,66.5227342]
[1641650922486,6.88302302,145.3,145.27,14.6068162]
[1641650922686,6.88302302,145.3,145.27,20.9778162]
[1641650923387,27.66479,145.35,145.29,14.6068162]
[1641650923586,6.88112851,145.34,145.29,14.6068162]
[1641650924087,6.88112851,145.34,145.3,14.6068162]
[1641650924286,6.88112851,145.34,145.3,21.0528162]
[1641650925186,27.66479,145.35,145.3,21.0528162]
[1641650925587,6.87994496,145.37,145.3,21.0528162]
[1641650925988,6.87994496,145.37,145.33,14.6068162]
[1641650926789,6.88112851,145.34,145.33,14.6068162]
[1641650927389,6.88112851,145.34,145.33,8.74225163]
[1641650928390,6.88112851,145.34,145.3,38.8579442]
[1641650928590,6.88112851,145.34,145.29,69.2207]
[1641650929192,6.88112851,145.34,145.29,38.8579442]
[1641650931592,6.88112851,145.34,145.28,38.8579442]
[1641650932296,6.88112851,145.34,145.28,40.97180473]
[1641650932894,5.50490641,145.33,145.28,40.97180473]
[1641650935099,6.88112851,145.34,145.28,40.97180473]
[1641650935400,6.88112851,145.34,145.3,38.8579442]
[1641650935599,6.88112851,145.34,145.3,47.1469442]
[1641650935899,5.50374672,145.36,145.3,74.8117342]
[1641650936399,5.50374672,145.36,145.31,2.11386053]
[1641650936600,34.54473496,145.37,145.32,4.0]
[1641650936798,6.87994496,145.37,145.32,4.0]
[1641650937000,11.74727572,145.39,145.33,27.66479]
[1641650937199,6.87876182,145.39,145.33,36.25879]
[1641650938200,6.87876182,145.39,145.34,2.11386053]
[1641650939602,6.87876182,145.39,145.38,4.87316202]
[1641650940501,6.87876182,145.39,145.34,2.11386053]
[1641650941903,6.87876182,145.39,145.38,4.87282046]
[1641650942402,6.87876182,145.39,145.34,2.11386053]
[1641650942606,6.87876182,145.39,145.37,4.87263927]
[1641650942806,5.50308392,145.38,145.37,4.87263927]
[1641650943606,5.50308392,145.38,145.32,2.11386053]
[1641650944609,5.50308392,145.38,145.37,4.87190391]
[1641650945211,6.87876182,145.39,145.37,4.87190391]
[1641650945410,6.87876182,145.39,145.37,6.265]
[1641650946510,6.87876182,145.39,145.38,6.98492408]
[1641650947311,6.87876182,145.39,145.37,6.265]
[1641650948013,6.87876182,145.39,145.37,11.13469706]
[1641650948213,6.87876182,145.39,145.37,4.86969706]
[1641650950017,12.38139428,145.39,145.37,4.86969706]
[1641650971142,6.87994496,145.38,145.36,7.055]
[1641650977445,27.66479,145.41,145.33,14.57114105]
[1641650978050,5.50386576,145.36,145.33,14.57114105]
[1641650978550,5.50386576,145.36,145.32,18.57114105]
[1641650979551,27.66479,145.41,145.32,18.57114105]
[1641650980553,19.54519751,145.4,145.32,18.57114105]
[1641650982558,19.54519751,145.4,145.32,14.57114105]
[1641650984860,5.50451849,145.34,145.32,14.57114105]
[1641650987364,6.60552586,145.34,145.32,9.06552767]
[1641650987564,6.60552586,145.34,145.33,9.06552767]
[1641650988365,6.60552586,145.34,145.29,104.2009442]
[1641650988566,6.60552586,145.34,145.29,65.343]
[1641650989565,6.60552586,145.34,145.29,69.343]
[1641650990165,6.60552586,145.34,145.3,4.0]
[1641650991069,27.66479,145.37,145.3,4.0]
[1641650992871,5.50412722,145.35,145.29,65.343]
[1641650993473,5.50412722,145.35,145.3,4.0]
[1641650993673,5.50412722,145.35,145.32,4.0]
[1641650993875,6.60356723,145.38,145.32,4.0]
[1641650994579,6.60356723,145.38,145.3,7.574]
[1641650994976,6.60356723,145.38,145.34,27.66479]
[1641650995176,6.60356723,145.38,145.34,36.38179]
[1641650995978,6.60356723,145.38,145.34,40.38179]
[1641650996179,35.58775382,145.41,145.34,40.38179]
[1641650996180,7.92296382,145.41,145.37,4.0]
[1641650996379,7.92296382,145.41,145.37,11.91]
[1641650996579,7.92296382,145.41,145.37,7.91]
[1641650996779,7.92296382,145.41,145.37,2.04710811]
[1641650999184,5.50243522,145.4,145.37,2.04710811]
[1641650999583,10.44,145.43,145.39,4.0]
[1641650999783,10.44,145.43,145.37,2.04710811]
[1641651000786,10.44,145.43,145.41,4.0]
[1641651000987,10.44,145.43,145.41,9.918]
[1641651001589,9.5037336,145.46,145.41,9.918]
[1641651002489,19.8237336,145.46,145.41,9.918]
[1641651004089,9.5037336,145.46,145.41,9.918]
[1641651005592,9.5037336,145.46,145.41,5.918]
[1641651005790,9.5037336,145.46,145.4,27.66479]
[1641651006989,9.5037336,145.46,145.41,4.0]
[1641651008190,15.00368963,145.46,145.41,4.0]
[1641651010694,15.00368963,145.46,145.4,39.30279]
[1641651010895,5.50115432,145.43,145.39,63.302]
[1641651011093,5.50115432,145.43,145.38,27.66479]
[1641651011094,5.50170796,145.41,145.38,27.66479]
[1641651011496,5.50170796,145.41,145.35,67.5172]
[1641651011795,3.34952307,145.39,145.36,4.0]
[1641651011994,8.624,145.4,145.35,71.5172]
[1641651012194,8.624,145.4,145.35,67.5172]
[1641651013397,27.66479,145.41,145.35,67.5172]
[1641651013599,27.66479,145.41,145.38,4.85941571]
[1641651013996,27.66479,145.41,145.38,12.26841571]
[1641651014198,6.60187586,145.42,145.38,12.26841571]
[1641651014398,6.60187586,145.42,145.38,7.409]
[1641651016600,6.60187586,145.42,145.37,4.85941571]
[1641651017300,5.50249495,145.39,145.37,4.85941571]
[1641651018202,5.50249495,145.39,145.37,3.93941571]
[1641651018403,5.50249495,145.39,145.35,65.87661571]
[1641651018601,5.50249495,145.39,145.34,46.24836375]
[1641651024509,5.50249495,145.39,145.35,14.58357375]
[1641651024709,5.50249495,145.39,145.35,21.93757375]
[1641651025211,5.50335377,145.37,145.35,21.93757375]
[1641651026614,5.50360297,145.36,145.35,21.93757375]
[1641651027115,5.50360297,145.36,145.35,16.07436299]
[1641651027514,5.50360297,145.36,145.35,7.354]
[1641651028518,2.97e-06,145.36,145.35,7.354]
[1641651028715,6.60214744,145.41,145.35,11.354]
[1641651028918,6.60214744,145.41,145.38,4.0]
[1641651029217,27.66479,145.44,145.38,8.426]
[1641651029417,6.87923503,145.45,145.39,4.0]
[1641651029618,6.87923503,145.45,145.38,12.426]
[1641651029817,6.87923503,145.45,145.38,8.426]
[1641651030017,19.53933142,145.44,145.38,36.09079]
[1641651030317,19.53933142,145.44,145.42,4.0]
[1641651030519,19.53933142,145.44,145.42,7.918]
[1641651030717,9.5037336,145.46,145.42,7.918]
[1641651032220,9.5037336,145.46,145.43,27.66479]
[1641651032420,9.5037336,145.46,145.43,19.85082379]
[1641651032821,9.5037336,145.46,145.42,7.918]
[1641651034024,5.50044961,145.45,145.42,7.918]
[1641651035627,5.50044961,145.45,145.39,68.4134]
[1641651036026,5.5011188,145.43,145.39,68.4134]
[1641651036827,5.5011188,145.43,145.39,72.4134]
[1641651037328,5.5011188,145.43,145.39,68.4134]
[1641651037527,5.5011188,145.43,145.39,72.4134]
[1641651038231,5.5011188,145.43,145.39,68.4134]
[1641651038830,5.5011188,145.43,145.39,72.4134]
[1641651040134,5.5011188,145.43,145.41,27.66479]
[1641651040432,5.5011188,145.43,145.41,36.36579]
[1641651042536,5.5011188,145.43,145.41,8.701]
[1641651044337,67.8624,145.45,145.41,3.19921843]
[1641651044537,9.5037336,145.46,145.41,3.19921843]
[1641651046041,9.5037336,145.46,145.39,72.4134]
[1641651046640,9.5037336,145.46,145.39,68.4134]
[1641651046841,9.5037336,145.46,145.4,4.0]
[1641651047041,9.5037336,145.46,145.39,68.4134]
[1641651047243,38.20479,145.51,145.44,4.0]
[1641651047442,38.20479,145.51,145.44,5.355]
[1641651047641,7.91794507,145.5,145.44,5.355]
[1641651047844,7.91794507,145.5,145.44,9.355]
[1641651048044,38.20479,145.51,145.44,9.355]
[1641651048242,38.20479,145.51,145.46,27.66479]
[1641651048646,10.54,145.51,145.46,27.66479]
[1641651049641,69.1033,145.53,145.46,27.66479]
[1641651049843,5.49790341,145.52,145.46,27.66479]
[1641651052546,5.49790341,145.52,145.47,2.22047072]
[1641651052745,5.49790341,145.52,145.47,7.78947072]
[1641651053346,5.49790341,145.52,145.47,5.569]
[1641651056753,5.49864063,145.5,145.47,5.569]
[1641651056955,12.09660417,145.5,145.43,54.0]
[1641651057155,5.49978164,145.47,145.43,54.0]
[1641651057755,5.49978164,145.47,145.44,2.21986709]
[1641651058556,5.49978164,145.47,145.44,10.24386709]
[1641651059856,5.49978164,145.47,145.45,2.21986709]
[1641651061457,5.49978164,145.47,145.43,54.0]
[1641651062360,5.49978164,145.47,145.44,2.22194364]
[1641651062958,5.49978164,145.47,145.44,14.61094364]
[1641651063359,5.49978164,145.47,145.44,10.61094364]
[1641651063760,5.49978164,145.47,145.45,2.22194364]
[1641651065560,10.99952722,145.47,145.45,2.22194364]
[1641651065763,10.99952722,145.47,145.45,13.37394364]
[1641651065764,5.49974558,145.47,145.45,13.37394364]
[1641651065962,6.59758439,145.51,145.45,9.37394364]
[1641651066361,6.59758439,145.51,145.45,13.37394364]
[1641651066763,6.59758439,145.51,145.45,9.37394364]
[1641651066963,5.49901396,145.49,145.46,2.22194364]
[1641651069965,5.49901396,145.49,145.46,6.22194364]
[1641651070765,5.49901396,145.49,145.47,2.22194364]
[1641651075571,5.49901396,145.49,145.47,6.22194364]
[1641651075769,5.49901396,145.49,145.47,4.0]
[1641651075970,5.49901396,145.49,145.46,6.22194364]
[1641651076269,5.49901396,145.49,145.46,2.22194364]
[1641651076470,5.49901396,145.49,145.47,2.22194364]
[1641651077071,5.49901396,145.49,145.47,6.22194364]
[1641651077274,5.49901396,145.49,145.47,4.0]
[1641651078074,5.49901396,145.49,145.48,2.22194364]
[1641651079976,3.27783809,145.47,145.46,68.56648801]
[1641651080376,7.807,145.49,145.46,68.56648801]
[1641651081177,27.66479,145.48,145.46,68.56648801]
[1641651081378,31.47148624,145.51,145.46,68.56648801]
[1641651081577,4.87398509,145.49,145.47,4.87474081]
[1641651082278,4.87398509,145.49,145.46,58.87474081]
[1641651083278,4.87398509,145.49,145.47,4.87474081]
[1641651083279,27.66479,145.48,145.47,4.87474081]
[1641651083478,34.26394941,145.48,145.47,1.10174081]
[1641651083879,34.26394941,145.48,145.46,54.0]
[1641651085678,5.49967536,145.47,145.46,54.0]
[1641651090882,5.49967536,145.47,145.46,48.49993529]
[1641651091483,10.08,145.49,145.46,48.49993529]
[1641651091783,10.08,145.49,145.46,48.0]
[1641651092383,10.08,145.49,145.46,40.18759044]
[1641651093483,16.67864453,145.49,145.46,40.18759044]
[1641651094085,16.67864453,145.49,145.46,40.0]
[1641651096197,5.49960093,145.47,145.46,40.0]
[1641651096596,7.101,145.47,145.46,27.89971621]
[1641651096795,7.101,145.47,145.42,14.56648801]
[1641651097495,27.66479,145.45,145.42,14.56648801]
[1641651097996,20.0,145.43,145.39,38.8579442]
[1641651098196,26.068,145.43,145.41,14.61954257]
[1641651098397,26.068,145.43,145.41,9.61954257]
[1641651098598,26.068,145.43,145.37,38.8579442]